[Event "Chinese Team-ch Men 2025"]
[Site "Zhang Jiakou Hebei"]
[Date "2025.04.26"]
[Round "2.29"]
[White "Yu, Shi"]
[Black "Ye, Xuqing"]
[Result "0-1"]
[Annotator "NA"]
[ECO "E09"]
[WhiteElo "1973"]
[BlackElo "1938"]
[PlyCount "100"]
[EventDate "2025.04.26"]
[EventType "team-tourn"]
[EventCountry "CHN"]
[SourceTitle "playchess.com"]
[Source "ChessBase"]
[SourceQuality "1"]
[TimeControl "5400+30"]

1. d4 {[%emt 0:00:04]} d5 {[%emt 0:00:36]} 2. c4 {[%emt 0:00:05]} e6 {[%emt 0:00:04]} 3. Nf3 {[%emt 0:00:10]} Nf6 {[%emt 0:00:06]} 4. g3 {[%emt 0:00:40]} c6 {[%emt 0:01:20]} 5. Qc2 {[%emt 0:00:55]} Nbd7 {[%emt 0:00:49]} 6. Bg2 {[%emt 0:00:11]} Be7 {[%emt 0:02:48]} 7. O-O {[%emt 0:00:09]} O-O {[%emt 0:00:18]} 8. Nbd2 {[%emt 0:00:51]} b6 {[%emt 0:02:09]} 9. e4 {[%emt 0:01:25]} Bb7 {[%emt 0:12:12]} 10. e5 {[%emt 0:01:47]} Ne8 {[%emt 0:00:05]} 11. h4 {[%emt 0:03:26]} Rc8 {[%emt 0:00:27]} 12. Rd1 {[%emt 0:20:18]} a6 {[%emt 0:03:41]} 13. b3 {[%emt 0:03:15]} Nc7 {[%emt 0:01:24]} 14. Nf1 {[%emt 0:02:14]} Qe8 {[%emt 0:03:51]} 15. Bf4 {[%emt 0:08:41]} c5 {[%emt 0:00:53]} 16. Ne3 {[%emt 0:17:41]} Ba8 {[%emt 0:05:42]} 17. dxc5 {[%emt 0:02:46]} Nxc5 {[%emt 0:01:21]} 18. Bg5 {[%emt 0:07:17]} h6 {[%emt 0:04:32]} 19. Bxe7 {[%emt 0:00:32]} Qxe7 {[%emt 0:00:02]} 20. Nd4 {[%emt 0:05:35]} Nd7 {[%emt 0:05:16]} 21. Qe2 {[%emt 0:11:04]} Nxe5 {[%emt 0:07:35]} 22. cxd5 {[%emt 0:00:06]} exd5 {[%emt 0:03:01]} 23. Nef5 {[%emt 0:02:48]} Qf6 {[%emt 0:00:19]} 24. Re1 {[%emt 0:08:40]} Rfe8 {[%emt 0:02:59]} 25. Rac1 {[%emt 0:01:18]} Nc6 {[%emt 0:01:32]} 26. Qg4 {[%emt 0:00:29]} Rxe1+ {[%emt 0:14:56]} 27. Rxe1 {[%emt 0:00:04]} Re8 {[%emt 0:00:06]} 28. Rxe8+ {[%emt 0:00:58]} Nxe8 {[%emt 0:00:07]} 29. Nxh6+ {[%emt 0:01:55]} Qxh6 {[%emt 0:02:09]} 30. Qd7 {[%emt 0:00:00]} Kf8 {[%emt 0:01:17]} 31. Qxd5 {[%emt 0:00:36]} Nxd4 {[%emt 0:00:37]} 32. Qxa8 {[%emt 0:00:00]} a5 {[%emt 0:00:34]} 33. Qd5 {[%emt 0:00:15]} Qd6 {[%emt 0:00:34]} 34. Qb7 {[%emt 0:00:29]} g6 {[%emt 0:01:48]} 35. Bd5 {[%emt 0:00:31]} Nc7 {[%emt 0:00:10]} 36. Bg2 {[%emt 0:00:17]} Ne2+ {[%emt 0:00:41]} 37. Kh2 {[%emt 0:00:08]} Nc3 {[%emt 0:00:15]} 38. Bc6 {[%emt 0:00:26]} N3d5 {[%emt 0:00:22]} 39. Qb8+ {[%emt 0:00:21]} Ke7 {[%emt 0:00:14]} 40. Qb7 {[%emt 0:00:17]} Kf6 {[%emt 0:00:40]} 41. Kg2 {[%emt 0:00:55]} Nb4 {[%emt 0:00:29]} 42. Be4 {[%emt 0:00:24]} Nxa2 {[%emt 0:00:23]} 43. Qb8 {[%emt 0:00:32]} Kg7 {[%emt 0:00:09]} 44. Bf3 {[%emt 0:00:31]} Nc1 {[%emt 0:00:29]} 45. h5 {[%emt 0:00:42]} gxh5 {[%emt 0:00:05]} 46. Bxh5 {[%emt 0:00:07]} Nxb3 {[%emt 0:00:11]} 47. Qc8 {[%emt 0:00:16]} Nd4 {[%emt 0:00:24]} 48. Qg4+ {[%emt 0:00:11]} Kf8 {[%emt 0:00:07]} 49. Qc8+ {[%emt 0:00:09]} Ke7 {[%emt 0:00:04]} 50. Qg8 {[%emt 0:00:13]} Qd5+ {[%emt 0:00:06]} 0-1

[Event "Chinese Team-ch Men 2025"]
[Site "Zhang Jiakou Hebei"]
[Date "2025.04.26"]
[Round "2.30"]
[White "Yu, Zhe"]
[Black "Liu, Huaqi"]
[Result "1/2-1/2"]
[Annotator "NA"]
[ECO "B22"]
[WhiteElo "1837"]
[BlackElo "1816"]
[PlyCount "72"]
[EventDate "2025.04.26"]
[EventType "team-tourn"]
[EventCountry "CHN"]
[SourceTitle "playchess.com"]
[Source "ChessBase"]
[SourceQuality "1"]
[TimeControl "5400+30"]

1. e4 {[%emt 0:00:02]} c5 {[%emt 0:00:09]} 2. Nf3 {[%emt 0:00:04]} e6 {[%emt 0:00:09]} 3. c3 {[%emt 0:00:09]} Nf6 {[%emt 0:00:30]} 4. e5 {[%emt 0:00:12]} Nd5 {[%emt 0:00:12]} 5. d4 {[%emt 0:00:39]} cxd4 {[%emt 0:00:15]} 6. cxd4 {[%emt 0:00:03]} b6 {[%emt 0:03:02]} 7. Nc3 {[%emt 0:00:34]} Nxc3 {[%emt 0:00:12]} 8. bxc3 {[%emt 0:00:09]} Qc7 {[%emt 0:01:00]} 9. Bd2 {[%emt 0:01:08]} Be7 {[%emt 0:01:49]} 10. Bd3 {[%emt 0:00:26]} Ba6 {[%emt 0:00:08]} 11. Bxa6 {[%emt 0:04:25]} Nxa6 {[%emt 0:00:10]} 12. Qe2 {[%emt 0:00:09]} Nb8 {[%emt 0:02:25]} 13. O-O {[%emt 0:00:24]} O-O {[%emt 0:00:52]} 14. Bg5 {[%emt 0:07:55]} f6 {[%emt 0:06:25]} 15. Bh4 {[%emt 0:05:26]} Nc6 {[%emt 0:26:02]} 16. exf6 {[%emt 0:06:27]} Bxf6 {[%emt 0:00:11]} 17. Bg3 {[%emt 0:00:05]} Qd8 {[%emt 0:10:03]} 18. Rad1 {[%emt 0:00:42]} Ne7 {[%emt 0:08:05]} 19. c4 {[%emt 0:15:15]} Re8 {[%emt 0:02:18]} 20. Bd6 {[%emt 0:05:40]} Rc8 {[%emt 0:06:32]} 21. c5 {[%emt 0:01:19]} bxc5 {[%emt 0:00:19]} 22. dxc5 {[%emt 0:00:12]} Rc6 {[%emt 0:06:49]} 23. Rb1 {[%emt 0:04:02]} Nf5 {[%emt 0:05:00]} 24. Rb8 {[%emt 0:03:51]} Rc8 {[%emt 0:00:05]} 25. Rb7 {[%emt 0:01:24]} Nxd6 {[%emt 0:01:31]} 26. cxd6 {[%emt 0:00:04]} Rc6 {[%emt 0:00:22]} 27. Rxa7 {[%emt 0:01:24]} Rxd6 {[%emt 0:00:15]} 28. Rd1 {[%emt 0:01:58]} Rxd1+ {[%emt 0:01:05]} 29. Qxd1 {[%emt 0:00:04]} d5 {[%emt 0:01:09]} 30. Qa4 {[%emt 0:01:13]} h6 {[%emt 0:07:47]} 31. h3 {[%emt 0:12:20]} Qb8 {[%emt 0:01:06]} 32. Rb7 {[%emt 0:01:28]} Qa8 {[%emt 0:01:39]} 33. Ra7 {[%emt 0:00:22]} Qb8 {[%emt 0:00:04]} 34. Rb7 {[%emt 0:00:55]} Qa8 {[%emt 0:00:02]} 35. Ra7 {[%emt 0:00:39]} Qb8 {[%emt 0:00:02]} 36. Rb7 {[%emt 0:02:06]} Qa8 {[%emt 0:00:08]} 1/2-1/2

[Event "Chinese Team-ch Men 2025"]
[Site "Zhang Jiakou Hebei"]
[Date "2025.04.26"]
[Round "2.31"]
[White "Liu, Junyi"]
[Black "Zhai, Bugong"]
[Result "1/2-1/2"]
[Annotator "NA"]
[ECO "B24"]
[WhiteElo "1714"]
[BlackElo "1661"]
[PlyCount "115"]
[EventDate "2025.04.26"]
[EventType "team-tourn"]
[EventCountry "CHN"]
[SourceTitle "playchess.com"]
[Source "ChessBase"]
[SourceQuality "1"]
[TimeControl "5400+30"]

1. e4 {[%emt 0:00:12]} c5 {[%emt 0:00:17]} 2. Nc3 {[%emt 0:00:26]} Nc6 {[%emt 0:00:06]} 3. g3 {[%emt 0:00:07]} g6 {[%emt 0:00:17]} 4. Nge2 {[%emt 0:00:11]} Bg7 {[%emt 0:00:24]} 5. Bg2 {[%emt 0:00:27]} e6 {[%emt 0:00:37]} 6. d3 {[%emt 0:00:14]} Nge7 {[%emt 0:03:07]} 7. Bg5 {[%emt 0:02:22]} d6 {[%emt 0:14:44]} 8. Qd2 {[%emt 0:00:59]} h6 {[%emt 0:01:50]} 9. Be3 {[%emt 0:00:50]} Rb8 {[%emt 0:01:03]} 10. a4 {[%emt 0:03:37]} a6 {[%emt 0:00:41]} 11. O-O {[%emt 0:00:14]} b5 {[%emt 0:00:28]} 12. axb5 {[%emt 0:00:08]} axb5 {[%emt 0:00:05]} 13. f4 {[%emt 0:00:50]} Nd4 {[%emt 0:10:03]} 14. Nd1 {[%emt 0:01:19]} Nec6 {[%emt 0:03:33]} 15. Nc1 {[%emt 0:07:07]} Ne7 {[%emt 0:24:20]} 16. c3 {[%emt 0:02:55]} Ndc6 {[%emt 0:00:05]} 17. d4 {[%emt 0:08:34]} cxd4 {[%emt 0:02:29]} 18. cxd4 {[%emt 0:00:08]} d5 {[%emt 0:04:43]} 19. e5 {[%emt 0:01:14]} b4 {[%emt 0:03:12]} 20. Nb3 {[%emt 0:00:22]} Qb6 {[%emt 0:06:43]} 21. Nc5 {[%emt 0:04:28]} Na5 {[%emt 0:00:28]} 22. b3 {[%emt 0:04:57]} Ba6 {[%emt 0:02:08]} 23. Re1 {[%emt 0:06:27]} Nec6 {[%emt 0:00:18]} 24. Nb2 {[%emt 0:01:00]} Bb5 {[%emt 0:00:41]} 25. Qc2 {[%emt 0:04:31]} Bf8 {[%emt 0:04:03]} 26. Nba4 {[%emt 0:05:33]} Bxa4 {[%emt 0:02:09]} 27. Rxa4 {[%emt 0:01:12]} Bxc5 {[%emt 0:02:19]} 28. dxc5 {[%emt 0:00:29]} Qc7 {[%emt 0:01:45]} 29. Bf2 {[%emt 0:05:35]} h5 {[%emt 0:01:25]} 30. h3 {[%emt 0:00:31]} Kd7 {[%emt 0:05:33]} 31. Raa1 {[%emt 0:01:33]} Ra8 {[%emt 0:03:39]} 32. g4 {[%emt 0:07:52]} hxg4 {[%emt 0:00:06]} 33. hxg4 {[%emt 0:00:04]} Ra7 {[%emt 0:02:56]} 34. f5 {[%emt 0:02:57]} gxf5 {[%emt 0:00:02]} 35. gxf5 {[%emt 0:00:09]} Rha8 {[%emt 0:00:11]} 36. fxe6+ {[%emt 0:01:31]} fxe6 {[%emt 0:00:06]} 37. Qh7+ {[%emt 0:02:21]} Kc8 {[%emt 0:01:33]} 38. Qg8+ {[%emt 0:00:15]} Nd8 {[%emt 0:00:36]} 39. Qg4 {[%emt 0:05:46]} Nac6 {[%emt 0:00:09]} 40. Rxa7 {[%emt 0:01:46]} Rxa7 {[%emt 0:00:29]} 41. Bxd5 {[%emt 0:02:14]} Qg7 {[%emt 0:00:26]} 42. Qxg7 {[%emt 0:00:41]} Rxg7+ {[%emt 0:00:04]} 43. Bg2 {[%emt 0:00:04]} Rg5 {[%emt 0:00:35]} 44. Kh2 {[%emt 0:06:33]} Rxe5 {[%emt 0:00:37]} 45. Rd1 {[%emt 0:01:14]} Re2 {[%emt 0:01:04]} 46. Bh4 {[%emt 0:01:21]} Rc2 {[%emt 0:00:21]} 47. Ra1 {[%emt 0:02:12]} Rxc5 {[%emt 0:00:20]} 48. Ra8+ {[%emt 0:01:24]} Kd7 {[%emt 0:00:09]} 49. Bf6 {[%emt 0:00:43]} Ra5 {[%emt 0:01:07]} 50. Rxa5 {[%emt 0:05:07]} Nxa5 {[%emt 0:00:10]} 51. Bh3 {[%emt 0:00:53]} Nxb3 {[%emt 0:00:05]} 52. Bxd8 {[%emt 0:00:10]} Kxd8 {[%emt 0:00:12]} 53. Bxe6 {[%emt 0:00:04]} Nc1 {[%emt 0:01:03]} 54. Kg3 {[%emt 0:00:26]} Ke7 {[%emt 0:00:06]} 55. Bg8 {[%emt 0:00:18]} Kd6 {[%emt 0:00:05]} 56. Kf2 {[%emt 0:00:14]} Kc5 {[%emt 0:00:13]} 57. Ke3 {[%emt 0:00:13]} Ne2 {[%emt 0:00:26]} 58. Ke4 {[%emt 0:00:30]} 1/2-1/2

[Event "Chinese Team-ch Men 2025"]
[Site "Zhang Jiakou Hebei"]
[Date "2025.04.26"]
[Round "2.33"]
[White "Gong, Changda"]
[Black "Fan, Yupan"]
[Result "1-0"]
[Annotator "NA"]
[ECO "B52"]
[WhiteElo "2131"]
[BlackElo "1527"]
[PlyCount "81"]
[EventDate "2025.04.26"]
[EventType "team-tourn"]
[EventCountry "CHN"]
[SourceTitle "playchess.com"]
[Source "ChessBase"]
[SourceQuality "1"]
[TimeControl "5400+30"]

1. e4 {[%emt 0:00:13]} c5 {[%emt 0:00:22]} 2. Nf3 {[%emt 0:00:03]} d6 {[%emt 0:00:25]} 3. Bb5+ {[%emt 0:00:10]} Bd7 {[%emt 0:00:31]} 4. Bxd7+ {[%emt 0:00:06]} Qxd7 {[%emt 0:02:28]} 5. c4 {[%emt 0:00:23]} Nc6 {[%emt 0:01:05]} 6. O-O {[%emt 0:01:27]} Nf6 {[%emt 0:02:02]} 7. Nc3 {[%emt 0:00:06]} g6 {[%emt 0:01:10]} 8. d4 {[%emt 0:01:05]} cxd4 {[%emt 0:01:22]} 9. Nxd4 {[%emt 0:00:04]} Bg7 {[%emt 0:01:47]} 10. Nc2 {[%emt 0:09:40]} O-O {[%emt 0:01:33]} 11. f3 {[%emt 0:04:36]} Rac8 {[%emt 0:01:05]} 12. b3 {[%emt 0:02:57]} Nh5 {[%emt 0:06:14]} 13. Bb2 {[%emt 0:02:27]} Nf4 {[%emt 0:02:50]} 14. Qd2 {[%emt 0:01:46]} g5 {[%emt 0:23:21]} 15. Ne3 {[%emt 0:01:44]} e6 {[%emt 0:07:54]} 16. Rad1 {[%emt 0:04:02]} Nb4 {[%emt 0:13:53]} 17. g3 {[%emt 0:01:55]} Nfd3 {[%emt 0:05:58]} 18. Ba1 {[%emt 0:02:16]} Nc5 {[%emt 0:04:02]} 19. Nb5 {[%emt 0:01:17]} Bxa1 {[%emt 0:05:38]} 20. Rxa1 {[%emt 0:03:07]} Nc6 {[%emt 0:01:26]} 21. b4 {[%emt 0:12:21]} Na4 {[%emt 0:01:36]} 22. Nxd6 {[%emt 0:01:13]} Rcd8 {[%emt 0:01:33]} 23. c5 {[%emt 0:01:51]} b6 {[%emt 0:00:34]} 24. Nec4 {[%emt 0:00:23]} f6 {[%emt 0:00:24]} 25. b5 {[%emt 0:01:19]} Na5 {[%emt 0:00:48]} 26. Nxa5 {[%emt 0:00:42]} bxa5 {[%emt 0:00:10]} 27. Qxa5 {[%emt 0:07:25]} Nxc5 {[%emt 0:00:20]} 28. Rad1 {[%emt 0:00:43]} Qe7 {[%emt 0:00:43]} 29. Qc3 {[%emt 0:03:41]} Na4 {[%emt 0:03:55]} 30. Qc6 {[%emt 0:01:38]} Nb6 {[%emt 0:01:03]} 31. f4 {[%emt 0:19:08]} Rd7 {[%emt 0:03:39]} 32. fxg5 {[%emt 0:05:26]} fxg5 {[%emt 0:06:08]} 33. e5 {[%emt 0:00:33]} Rfd8 {[%emt 0:00:26]} 34. Rd2 {[%emt 0:03:07]} Qg7 {[%emt 0:00:10]} 35. Qe4 {[%emt 0:00:21]} Nd5 {[%emt 0:00:17]} 36. Rdf2 {[%emt 0:02:29]} Qh6 {[%emt 0:00:53]} 37. Nf7 {[%emt 0:00:26]} Qh5 {[%emt 0:00:33]} 38. Nxd8 {[%emt 0:00:08]} Rxd8 {[%emt 0:00:02]} 39. Qd4 {[%emt 0:00:47]} Rd7 {[%emt 0:00:52]} 40. Qc5 {[%emt 0:00:18]} Qe8 {[%emt 0:00:46]} 41. Rf8+ {[%emt 0:00:07]} 1-0

[Event "Chinese Team-ch Men 2025"]
[Site "Zhang Jiakou Hebei"]
[Date "2025.04.27"]
[Round "3.1"]
[White "Bai, Jinshi"]
[Black "Li, Chao b"]
[Result "1/2-1/2"]
[Annotator "TA"]
[ECO "D94"]
[WhiteElo "2569"]
[BlackElo "2624"]
[PlyCount "60"]
[EventDate "2025.04.26"]
[EventType "team-tourn"]
[EventCountry "CHN"]
[SourceTitle "playchess.com"]
[Source "ChessBase"]
[SourceQuality "1"]
[TimeControl "5400+30"]

{[%evp 24,60,32,32,34,38,24,34,33,42,34,32,62,62,77,77,77,77,83,85,83,91,95,87,87,95,93,66,74,74,68,74,74,0,0,0,6,11,22]} 1. d4 {[%emt 0:00:11]} d5 {[%emt 0:00:55]} 2. c4 {[%emt 0:00:19]} c6 {[%emt 0:00:07]} 3. Nf3 {[%emt 0:00:26]} Nf6 {[%emt 0:00:07]} 4. e3 {[%emt 0:01:47]} g6 {[%emt 0:07:03]} 5. Nc3 {[%emt 0:00:44]} Bg7 {[%emt 0:00:07]} 6. Be2 {[%emt 0:00:40]} O-O {[%emt 0:00:15]} 7. O-O {[%emt 0:00:13]} dxc4 {[%emt 0:00:21]} 8. Bxc4 {[%emt 0:01:39]} Bg4 {[%emt 0:00:07]} 9. h3 {[%emt 0:02:30]} Bxf3 {[%emt 0:00:43]} 10. Qxf3 {[%emt 0:00:07]} Nbd7 {[%emt 0:00:04]} 11. Rd1 {[%emt 0:00:32]} e5 {[%emt 0:00:12]} 12. d5 {[%emt 0:02:41]} e4 {[%emt 0:01:07]} 13. Nxe4 {[%emt 0:00:07]} Ne5 {[%emt 0:00:08] D94: Grünfeld: 4 Nf3 Bg7 5 e3.} 14. Nxf6+ {[%emt 0:00:31]} Bxf6 {[%emt 0:00:07]} 15. Qe2 {[%emt 0:01:45]} Nxc4 {[%emt 0:00:06] White is slightly better.} 16. Qxc4 {[%emt 0:00:19]} cxd5 {[%emt 0:00:07]} 17. Rxd5 {[%emt 0:05:13]} Qc8 {[%emt 0:00:14]} 18. Qb3 {[%emt 0:05:58]} Qe6 $146 {[%emt 0:02:41] Repels e4} (18... Rd8 19. Rxd8+ Qxd8 20. e4 Qd4 21. Be3 Qxe4 22. Rd1 Qc6 23. Rc1 Qd7 24. Qc2 a6 25. Qc7 Qd5 26. Qc4 Qd7 27. Qc7 Qd5 28. Qc4 Qd7 29. Qc7 {½-½ Zhang,Z (2392)-Zhang,D (2303) CHN-ch Gp-B Liaocheng 2024 (6)}) 19. Bd2 {[%emt 0:07:23]} Bxb2 {[%emt 0:06:16] [#]} 20. Rd1 {[%emt 0:04:14][%cal Od2b4] Bb4! would now be deadly.} Bf6 {[%emt 0:03:29]} 21. Qxb7 {[%emt 0:02:06]} Rab8 {[%emt 0:06:43]} 22. Qd7 {[%emt 0:00:07] White is more active.} (22. Qxa7 $2 {loses.} Qxd5 23. Qa6 Bg7 $19) 22... Qa6 {[%emt 0:21:42][%cal Ob8d8]} 23. Rd6 {[%emt 0:04:02]} Qxa2 {[%emt 0:02:02]} 24. Rxf6 {[%emt 0:00:18]} Rbd8 {[%emt 0:00:41][%cal Bb8d8,Bd8d2,Bd2a2][%mdl 32]} 25. Qb7 {[%emt 0:04:29]} a5 {[%emt 0:01:16] [#]} 26. Qb1 $1 {[%emt 0:02:14]} Rxd2 {[%emt 0:01:28]} 27. Qxa2 {[%emt 0:01:03]} Rxa2 {[%emt 0:00:04]} 28. Ra6 {[%emt 0:02:37]} (28. Rd7 $16) 28... Rc8 {[%emt 0:00:37] The position is equal.} 29. g4 {[%emt 0:00:15]} Kg7 {[%emt 0:03:19]} 30. Rd4 {[%emt 0:00:57]} Rc7 {[%emt 0:00:16] Weighted Error Value: White=0.07 (flawless) /Black=0.04 (flawless)   Mistake:       	White=1     	---        Inaccurate:     	---       	Black=1      OK:         	White=7     	Black=5      Best:        	White=4     	Black=2      Strong:       	White=1     	---} 1/2-1/2

[Event "Chinese Team-ch Men 2025"]
[Site "Zhang Jiakou Hebei"]
[Date "2025.04.27"]
[Round "3.2"]
[White "Xiu, Deshun"]
[Black "Kong, Xiangrui"]
[Result "1/2-1/2"]
[Annotator "ChessBase"]
[ECO "E54"]
[WhiteElo "2516"]
[BlackElo "2451"]
[PlyCount "60"]
[EventDate "2025.04.26"]
[EventType "team-tourn"]
[EventCountry "CHN"]
[SourceTitle "playchess.com"]
[Source "ChessBase"]
[SourceQuality "1"]
[TimeControl "5400+30"]

1. d4 {[%emt 0:00:04]} Nf6 {[%emt 0:00:07]} 2. c4 {[%emt 0:00:14]} e6 {[%emt 0:00:03]} 3. Nc3 {[%emt 0:00:38]} Bb4 {[%emt 0:00:05]} 4. e3 {[%emt 0:01:40]} O-O {[%emt 0:00:17]} 5. Bd3 {[%emt 0:00:19]} d5 {[%emt 0:00:33]} 6. Nf3 {[%emt 0:00:28]} dxc4 {[%emt 0:00:42]} 7. Bxc4 {[%emt 0:00:06]} c5 {[%emt 0:00:04]} 8. O-O {[%emt 0:00:23]} cxd4 {[%emt 0:00:13]} 9. exd4 {[%emt 0:00:09]} b6 {[%emt 0:00:04]} 10. Qe2 {[%emt 0:04:35]} Bb7 {[%emt 0:00:29]} 11. Rd1 {[%emt 0:00:13]} h6 {[%emt 0:00:22]} 12. h3 {[%emt 0:08:17]} Nc6 {[%emt 0:11:30]} 13. d5 {[%emt 0:16:17]} exd5 {[%emt 0:00:20]} 14. Nxd5 {[%emt 0:01:43]} Re8 {[%emt 0:19:47]} 15. Be3 {[%emt 0:09:11]} Bc5 {[%emt 0:11:38]} 16. Qc2 {[%emt 0:16:01]} Nxd5 {[%emt 0:12:51]} 17. Bxc5 {[%emt 0:10:51]} Ne5 {[%emt 0:00:51]} 18. Bxd5 {[%emt 0:01:36]} Bxd5 {[%emt 0:00:06]} 19. Nxe5 {[%emt 0:00:06]} Rxe5 {[%emt 0:00:03]} 20. Be3 {[%emt 0:00:38]} Qc8 {[%emt 0:03:32]} 21. Qxc8+ {[%emt 0:05:42]} Rxc8 {[%emt 0:00:09]} 22. a3 {[%emt 0:00:31]} Be6 {[%emt 0:00:46]} 23. Rac1 {[%emt 0:00:15]} Rxc1 {[%emt 0:00:06]} 24. Rxc1 {[%emt 0:00:02]} Rd5 {[%emt 0:00:06]} 25. Rc7 {[%emt 0:00:14]} Rd7 {[%emt 0:00:04]} 26. Rxd7 {[%emt 0:00:03]} Bxd7 {[%emt 0:00:04]} 27. Kf1 {[%emt 0:00:07]} Bb5+ {[%emt 0:00:05]} 28. Ke1 {[%emt 0:00:05]} Bc6 {[%emt 0:00:04]} 29. Kf1 {[%emt 0:00:05]} Bb5+ {[%emt 0:00:03]} 30. Ke1 {[%emt 0:00:03]} Bc6 {[%emt 0:00:05]} 1/2-1/2

[Event "Chinese Team-ch Men 2025"]
[Site "Zhang Jiakou Hebei"]
[Date "2025.04.27"]
[Round "3.3"]
[White "Xie, Kaifan"]
[Black "Peng, Hongchi"]
[Result "1/2-1/2"]
[Annotator "ChessBase"]
[ECO "E15"]
[WhiteElo "2435"]
[BlackElo "2419"]
[PlyCount "60"]
[EventDate "2025.04.26"]
[EventType "team-tourn"]
[EventCountry "CHN"]
[SourceTitle "playchess.com"]
[Source "ChessBase"]
[SourceQuality "1"]
[TimeControl "5400+30"]

1. d4 {[%emt 0:00:03]} Nf6 {[%emt 0:00:05]} 2. c4 {[%emt 0:00:21]} e6 {[%emt 0:00:04]} 3. Nf3 {[%emt 0:00:06]} b6 {[%emt 0:00:04]} 4. g3 {[%emt 0:00:11]} Ba6 {[%emt 0:00:04]} 5. Qc2 {[%emt 0:00:41]} Bb7 {[%emt 0:00:05]} 6. Bg2 {[%emt 0:00:11]} c5 {[%emt 0:00:06]} 7. d5 {[%emt 0:01:03]} exd5 {[%emt 0:00:04]} 8. cxd5 {[%emt 0:00:06]} Nxd5 {[%emt 0:00:02]} 9. O-O {[%emt 0:00:07]} Be7 {[%emt 0:00:02]} 10. Rd1 {[%emt 0:01:02]} Qc8 {[%emt 0:00:04]} 11. Qf5 {[%emt 0:06:48]} Nf6 {[%emt 0:00:35]} 12. Nc3 {[%emt 0:07:21]} O-O {[%emt 0:01:18]} 13. e4 {[%emt 0:15:43]} d6 {[%emt 0:03:33]} 14. Qxc8 {[%emt 0:04:30]} Rxc8 {[%emt 0:00:07]} 15. Nh4 {[%emt 0:00:03]} Bf8 {[%emt 0:11:47]} 16. Nf5 {[%emt 0:10:31]} Ne8 {[%emt 0:00:46]} 17. Nb5 {[%emt 0:09:37]} Nc6 {[%emt 0:02:05]} 18. Nbxd6 {[%emt 0:01:58]} Nxd6 {[%emt 0:00:03]} 19. Nxd6 {[%emt 0:00:10]} Bxd6 {[%emt 0:00:32]} 20. Rxd6 {[%emt 0:00:03]} Nd4 {[%emt 0:02:46]} 21. Bf4 {[%emt 0:09:42]} Re8 {[%emt 0:06:14]} 22. e5 {[%emt 0:06:38]} Bxg2 {[%emt 0:04:41]} 23. Kxg2 {[%emt 0:00:04]} Rad8 {[%emt 0:00:05]} 24. Rxd8 {[%emt 0:01:04]} Rxd8 {[%emt 0:00:16]} 25. Rd1 {[%emt 0:00:19]} Kf8 {[%emt 0:02:12]} 26. Be3 {[%emt 0:03:04]} Ke7 {[%emt 0:11:58]} 27. Bg5+ {[%emt 0:05:05]} f6 {[%emt 0:00:04]} 28. exf6+ {[%emt 0:00:04]} gxf6 {[%emt 0:00:03]} 29. Re1+ {[%emt 0:00:44]} Kf7 {[%emt 0:00:06]} 30. Bf4 {[%emt 0:00:38]} Ne6 {[%emt 0:00:28]} 1/2-1/2

[Event "Chinese Team-ch Men 2025"]
[Site "Zhang Jiakou Hebei"]
[Date "2025.04.27"]
[Round "3.4"]
[White "Zhang, Di"]
[Black "Zhu, Hengyi"]
[Result "1-0"]
[Annotator "ChessBase"]
[ECO "C67"]
[WhiteElo "2406"]
[BlackElo "2385"]
[PlyCount "49"]
[EventDate "2025.04.26"]
[EventType "team-tourn"]
[EventCountry "CHN"]
[SourceTitle "playchess.com"]
[Source "ChessBase"]
[SourceQuality "1"]
[TimeControl "5400+30"]

1. e4 {[%emt 0:00:03]} e5 {[%emt 0:00:10]} 2. Nf3 {[%emt 0:00:16]} Nc6 {[%emt 0:00:11]} 3. Bb5 {[%emt 0:00:06]} Nf6 {[%emt 0:00:10]} 4. O-O {[%emt 0:11:23]} Nxe4 {[%emt 0:01:51]} 5. Re1 {[%emt 0:00:06]} Nd6 {[%emt 0:00:09]} 6. Nxe5 {[%emt 0:00:28]} Be7 {[%emt 0:00:14]} 7. Bf1 {[%emt 0:00:22]} Nxe5 {[%emt 0:00:24]} 8. Rxe5 {[%emt 0:00:06]} O-O {[%emt 0:00:15]} 9. d4 {[%emt 0:00:31]} Bf6 {[%emt 0:02:09]} 10. Re1 {[%emt 0:00:10]} Re8 {[%emt 0:00:13]} 11. Bf4 {[%emt 0:21:52]} Rxe1 {[%emt 0:05:13]} 12. Qxe1 {[%emt 0:00:02]} Ne8 {[%emt 0:06:55]} 13. Nc3 {[%emt 0:05:45]} Bxd4 {[%emt 0:02:14]} 14. Nd5 {[%emt 0:01:46]} d6 {[%emt 0:01:23]} 15. Qe4 {[%emt 0:30:37]} Bxb2 {[%emt 0:09:07]} 16. Bg5 {[%emt 0:00:34]} f6 {[%emt 0:00:35]} 17. Re1 {[%emt 0:07:49]} Be5 {[%emt 0:05:28]} 18. f4 {[%emt 0:01:13]} Be6 {[%emt 0:38:57]} 19. Bd3 {[%emt 0:00:17]} f5 {[%emt 0:02:54]} 20. Qc4 {[%emt 0:02:18]} b5 {[%emt 0:01:21]} 21. Qxb5 {[%emt 0:05:00]} Bd4+ {[%emt 0:00:50]} 22. Kf1 {[%emt 0:03:38]} Qd7 {[%emt 0:03:20]} 23. Qb7 {[%emt 0:00:49]} Rc8 {[%emt 0:03:32]} 24. Rxe6 {[%emt 0:01:40]} Qxe6 {[%emt 0:00:38]} 25. Bxf5 {[%emt 0:00:33]} 1-0